[Event "SELL Games"]
[Site "Tartu, Estonia"]
[Date "2023.05.20"]
[Round "9.8"]
[White "Galdikaite, Greta"]
[Black "Maciuityte, Greta"]
[Result "0-1"]
[TimeControl "15min + 10sec per move each"]
[WhiteFideId "12819956"]
[BlackFideId "12806765"]
[WhiteElo "1195"]
[BlackElo "1715"]

1. e4 {[%clk 00:15:18]} {[%emt 00:00:02]} d5 {[%clk 00:15:18]} {[%emt
00:00:02]} 2. exd5 {[%clk 00:15:22]} {[%emt 00:00:07]} Nf6 {[%clk 00:15:27]}
{[%emt 00:00:01]} 3. Nc3 {[%clk 00:15:29]} {[%emt 00:00:02]} Nxd5 {[%clk
00:15:35]} {[%emt 00:00:02]} 4. Bc4 {[%clk 00:15:31]} {[%emt 00:00:07]} Nb6
{[%clk 00:15:31]} {[%emt 00:00:15]} 5. Bb3 {[%clk 00:15:38]} {[%emt 00:00:04]}
e6 {[%clk 00:15:33]} {[%emt 00:00:07]} 6. Nf3 {[%clk 00:15:37]} {[%emt
00:00:11]} Nc6 {[%clk 00:15:34]} {[%emt 00:00:09]} 7. d3 {[%clk 00:15:40]}
{[%emt 00:00:07]} Be7 {[%clk 00:15:12]} {[%emt 00:00:32]} 8. Bf4 {[%clk
00:15:03]} {[%emt 00:00:47]} O-O {[%clk 00:15:15]} {[%emt 00:00:07]} 9. O-O
{[%clk 00:13:56]} {[%emt 00:01:17]} a6 {[%clk 00:15:22]} {[%emt 00:00:03]} 10.
Ne5 {[%clk 00:13:56]} {[%emt 00:00:10]} Nxe5 {[%clk 00:15:08]} {[%emt
00:00:24]} 11. Bxe5 {[%clk 00:14:03]} {[%emt 00:00:03]} Nd7 {[%clk 00:14:41]}
{[%emt 00:00:37]} 12. Bg3 {[%clk 00:13:25]} {[%emt 00:00:47]} b6 {[%clk
00:14:29]} {[%emt 00:00:22]} 13. Qf3 {[%clk 00:13:11]} {[%emt 00:00:24]} Rb8
{[%clk 00:14:29]} {[%emt 00:00:09]} 14. Ne4 {[%clk 00:13:17]} {[%emt 00:00:04]}
Bb7 {[%clk 00:14:14]} {[%emt 00:00:25]} 15. Qe3 {[%clk 00:11:09]} {[%emt
00:02:18]} Kh8 {[%clk 00:12:57]} {[%emt 00:01:27]} 16. a4 {[%clk 00:10:20]}
{[%emt 00:01:00]} e5 {[%clk 00:11:51]} {[%emt 00:01:16]} 17. Rfe1 {[%clk
00:08:15]} {[%emt 00:02:15]} f5 {[%clk 00:11:26]} {[%emt 00:00:34]} 18. Nc3
{[%clk 00:06:33]} {[%emt 00:01:52]} f4 {[%clk 00:11:27]} {[%emt 00:00:09]} 19.
Bxf4 {[%clk 00:06:40]} {[%emt 00:00:04]} Rxf4 {[%clk 00:11:11]} {[%emt
00:00:26]} 20. Be6 {[%clk 00:05:25]} {[%emt 00:01:25]} Bc5 {[%clk 00:10:45]}
{[%emt 00:00:36]} 21. Qh3 {[%clk 00:04:14]} {[%emt 00:01:20]} Bxf2+ {[%clk
00:10:33]} {[%emt 00:00:22]} 22. Kf1 {[%clk 00:03:54]} {[%emt 00:00:30]} Bxe1+
{[%clk 00:09:49]} {[%emt 00:00:54]} 23. Kxe1 {[%clk 00:03:55]} {[%emt
00:00:09]} Nc5 {[%clk 00:09:50]} {[%emt 00:00:09]} 24. Kd2 {[%clk 00:02:17]}
{[%emt 00:01:48]} Nxe6 {[%clk 00:09:17]} {[%emt 00:00:44]} 25. Qxe6 {[%clk
00:02:15]} {[%emt 00:00:11]} Rf2+ {[%clk 00:09:24]} {[%emt 00:00:03]} 26. Ne2
{[%clk 00:01:46]} {[%emt 00:00:40]} Qg5+ {[%clk 00:09:06]} {[%emt 00:00:28]} 27.
Kc3 {[%clk 00:01:27]} {[%emt 00:00:29]} Rxe2 {[%clk 00:09:00]} {[%emt
00:00:16]} 28. Kb3 {[%clk 00:00:59]} {[%emt 00:00:38]} Qxg2 {[%clk 00:08:35]}
{[%emt 00:00:36]} 29. Ka3 {[%clk 00:00:19]} {[%emt 00:00:50]} Qf2 {[%clk
00:07:39]} {[%emt 00:01:04]} 0-1